[Event "Karel Janecek Open 2024"]
[Site "Prague"]
[Date "2024.03.02"]
[Round "4.2"]
[White "Ilamparthi A R"]
[Black "Bharath Subramaniyam H"]
[Result "1-0"]
[ECO "C70"]
[WhiteElo "2426"]
[BlackElo "2515"]
[Annotator "TA"]
[PlyCount "63"]
[EventDate "2024.02.22"]
[EventType "swiss"]
[EventCountry "CZE"]
[SourceTitle "playchess.com"]
[Source "ChessBase"]
[SourceQuality "1"]
[TimeControl "40/5400+30:1800+30"]

{[%evp 10,63,42,33,27,17,29,0,9,8,-3,0,11,0,6,-2,-8,-5,0,-13,5,0,18,26,33,0,-8,-15,-15,-6,9,44,41,50,37,47,114,134,244,233,231,229,345,352,360,351,1200,1200,2071,1994,6303,3377,29989,29990,29990,29991]} 1. e4 {[%emt 0:00:02]} e5 {[%emt 0:01:26]} 2. Nf3 {[%emt 0:00:06]} Nc6 {[%emt 0:00:09]} 3. Bb5 {[%emt 0:00:03]} a6 {[%emt 0:00:37]} 4. Ba4 {[%emt 0:00:02]} Bc5 {[%emt 0:01:27]} 5. O-O {[%emt 0:01:31]} d6 {[%emt 0:00:33]} 6. c3 {[%emt 0:03:41]} Bg4 {[%emt 0:00:18]} 7. d3 {[%emt 0:07:47]} Nge7 {[%emt 0:00:37]} 8. Nbd2 {[%emt 0:02:58]} O-O {[%emt 0:01:14] The position is equal.} 9. h3 {[%emt 0:03:09]} Bh5 {[%emt 0:01:15]} 10. g4 {[%emt 0:07:49]} Bg6 {[%emt 0:00:40]} 11. Nh4 {[%emt 0:00:51]} f6 {[%emt 0:23:37]} 12. Ndf3 {[%emt 0:13:07]} Bf7 {[%emt 0:04:28]} 13. d4 {[%emt 0:09:02]} Ba7 {[%emt 0:06:16]} 14. d5 {[%emt 0:14:28]} b5 {[%emt 0:09:52]} 15. Bc2 {[%emt 0:00:32]} Na5 {[%emt 0:00:16]} 16. a4 {[%emt 0:08:03]} c6 {[%emt 0:06:05][%cal Rc6d5]} 17. Qd3 {[%emt 0:02:45]} cxd5 {[%emt 0:20:16]} 18. exd5 {[%emt 0:00:03][%csl Gc2][%cal Rd3h7]} g6 {[%emt 0:00:24]} 19. Bh6 $36 {[%emt 0:09:42][%mdl 2048] Black is under pressure.} Re8 {[%emt 0:02:36]} 20. axb5 {[%emt 0:00:54]} Bxd5 {[%emt 0:01:23]} 21. Nd2 {[%emt 0:06:48] Against Bc4. aiming for b4. The board is on fire.} axb5 {[%emt 0:03:32]} 22. Qxb5 {[%emt 0:00:05][%cal Ob2b4] b4! would now be deadly.} (22. Ne4 Bxe4 23. Qxe4 d5 $17) 22... Bc6 {[%emt 0:08:13]} ({Black should play} 22... Kh8 $1 $14) 23. Qe2 $16 {[%emt 0:00:32] b4 is the strong threat. White has more active pieces.} d5 {[%emt 0:02:52] [#]} (23... Kh8 $16) 24. b4 $1 $18 {[%emt 0:00:06][%cal Bb2b4,Bb4b5][%mdl 32]} Nb7 {[%emt 0:00:08] [#]} 25. b5 $1 {[%emt 0:02:51]} Bd7 {[%emt 0:00:01]} (25... Bxb5 {might work better.} 26. Qxb5 Nd6) 26. Qf3 {[%emt 0:00:07]} Kf7 {[%emt 0:02:54][%cal Ob7c5,Bg8f7,Bf7g7,Bg7f8][%mdl 32]} 27. Bg5 {[%emt 0:00:43]} Qb6 {[%emt 0:02:10]} (27... Ng8 28. Qxd5+ Kg7 29. Qxb7 Bxf2+ 30. Kxf2 Rb8) 28. Ra6 {[%emt 0:00:10]} e4 {[%emt 0:00:36]} 29. Nxe4 {[%emt 0:01:07]} ({Not} 29. Qxf6+ Qxf6 30. Rxf6+ Kg7 $15) 29... dxe4 {[%emt 0:00:15]} 30. Bb3+ {[%emt 0:00:53]} (30. Qxf6+ Qxf6 31. Rxf6+ Kg7 $19) 30... Kg7 {[%emt 0:00:32]} 31. Bxf6+ {[%emt 0:00:16]} Kf8 {[%emt 0:00:11]} 32. Qf4 {[%emt 0:00:58] Weighted Error Value: White=0.03 (flawless) /Black=0.36.  Mistake:       	---       	Black=4      Inaccurate:     	White=2     	Black=1      OK:         	White=11    	Black=7      Best:        	White=2     	Black=2      Strong:       	White=2     	---} 1-0

[Event "Karel Janecek Open 2024"]
[Site "Prague"]
[Date "2024.03.02"]
[Round "4.3"]
[White "Xiang, Zeyu"]
[Black "Popovic, Dusan"]
[Result "1-0"]
[ECO "E90"]
[WhiteElo "2418"]
[BlackElo "2504"]
[Annotator "TA"]
[PlyCount "143"]
[EventDate "2024.02.22"]
[EventType "swiss"]
[EventCountry "CZE"]
[SourceTitle "playchess.com"]
[Source "ChessBase"]
[SourceQuality "1"]
[TimeControl "40/5400+30:1800+30"]

{[%evp 48,143,264,237,244,203,263,283,283,276,300,303,292,251,231,235,250,246,261,246,253,266,314,304,370,364,308,188,188,190,189,195,663,389,389,389,389,382,367,367,953,781,697,492,475,452,503,325,312,315,443,454,570,559,716,677,829,829,829,585,829,585,585,578,578,578,578,578,578,578,646,570,610,570,570,570,570,570,570,570,570,563,827,827,820,771,827,802,794,754,746,735,721,714,692,636,495,482]} 1. d4 {[%emt 0:00:03]} Nf6 {[%emt 0:00:08]} 2. c4 {[%emt 0:00:04]} g6 {[%emt 0:00:07]} 3. Nc3 {[%emt 0:00:04]} Bg7 {[%emt 0:00:08]} 4. e4 {[%emt 0:00:04]} d6 {[%emt 0:00:09]} 5. Nf3 {[%emt 0:00:09]} O-O {[%emt 0:00:22]} 6. h3 {[%emt 0:00:10]} e5 {[%emt 0:00:39]} 7. d5 {[%emt 0:00:06]} a5 {[%emt 0:00:35]} 8. g4 {[%emt 0:00:09] 8.Be3 gains popularity.} Na6 {[%emt 0:00:51]} 9. Be3 {[%emt 0:00:07]} Nd7 {[%emt 0:00:51] E90: King's Indian: Classical: Early deviations and 6 h3.} 10. a3 {[%emt 0:00:23]} Nac5 {[%emt 0:02:01]} 11. Nd2 {[%emt 0:00:27]} a4 {[%emt 0:01:18]} 12. h4 {[%emt 0:08:25]} Bf6 {[%emt 0:14:49]} 13. Qf3 $146 {[%emt 0:03:32]} ({Predecessor:} 13. g5 Be7 14. Qc2 f6 15. Rg1 fxg5 16. hxg5 Nb6 17. O-O-O c6 18. f4 cxd5 19. cxd5 {0-1 Sabuk,P (2413)-Dahale,A (2186) Roquetas de Mar op 34th 2023 (3)}) 13... Bxh4 {[%emt 0:07:13]} 14. Qh3 {[%emt 0:04:05]} g5 {[%emt 0:00:08]} 15. Nf3 {[%emt 0:03:04]} f6 {[%emt 0:04:43]} 16. Nxh4 {[%emt 0:01:02]} gxh4 {[%emt 0:00:04]} 17. Qxh4 {[%emt 0:00:11]} Rf7 {[%emt 0:00:04]} 18. O-O-O {[%emt 0:01:50]} Nf8 {[%emt 0:00:53]} 19. Be2 {[%emt 0:02:09]} Nb3+ {[%emt 0:20:26]} 20. Kb1 {[%emt 0:00:10]} Qe7 {[%emt 0:03:46]} 21. Bd3 {[%emt 0:15:29]} Ng6 {[%emt 0:03:59]} 22. Qh2 {[%emt 0:01:19]} Bd7 {[%emt 0:07:04]} 23. Rdg1 {[%emt 0:02:10]} Nd4 {[%emt 0:07:33]} 24. Qh6 {[%emt 0:19:38]} c5 {[%emt 0:01:18]} 25. g5 {[%emt 0:04:52]} f5 {[%emt 0:05:27]} 26. exf5 {[%emt 0:01:42]} Bxf5 {[%emt 0:03:36]} 27. Bxf5 {[%emt 0:01:18]} Nxf5 {[%emt 0:00:09]} 28. Qh3 {[%emt 0:01:32]} e4 {[%emt 0:01:45]} 29. Rg4 {[%emt 0:02:03]} Nxe3 {[%emt 0:04:18]} 30. Qxe3 {[%emt 0:03:18]} (30. Rxe4 $6 Qxg5 31. fxe3 (31. Rxe3 Rd8 $18) 31... Qf5 32. Qxf5 Rxf5 $18) 30... Rf3 {[%emt 0:02:04]} 31. Qxe4 {[%emt 0:05:46]} Qf7 {[%emt 0:00:36]} 32. Qe6 {[%emt 0:01:22]} Qxe6 {[%emt 0:02:08]} 33. dxe6 {[%emt 0:00:04]} Re8 {[%emt 0:00:27]} 34. Re4 $1 {[%emt 0:06:59]} (34. Nxa4 Rxe6 35. Rg2 Ne5 $14) 34... Ne5 {[%emt 0:00:33] [#]} 35. Rh6 $1 {[%emt 0:02:01]} (35. Nxa4 Rxe6 36. Rh2 Re7 $16) 35... Rxf2 {[%emt 0:02:42]} 36. Nd5 {[%emt 0:00:21]} (36. Nxa4 Nf3 37. Rg4 Kg7 $11) 36... Kg7 {[%emt 0:01:07]} 37. Rf6 {[%emt 0:07:56]} Rg2 {[%emt 0:01:29]} 38. e7 {[%emt 0:01:22]} Rxg5 {[%emt 0:02:55]} 39. Rxd6 {[%emt 0:00:09]} Nf7 $2 {[%emt 0:00:52]} (39... Nc6 40. Ka2 h5) 40. Rde6 {[%emt 0:01:34]} Rg1+ {[%emt 0:00:17] [#]} 41. Re1 $1 {[%emt 0:30:44]} Rxe1+ {[%emt 0:03:36]} 42. Rxe1 {[%emt 0:00:00]} Nd6 {[%emt 0:00:49]} 43. Nc7 {[%emt 0:00:00]} Rh8 $2 {[%emt 0:13:49]} (43... Kf7 44. Nxe8 Nxe8) 44. e8=Q {[%emt 0:00:00]} Nxe8 {[%emt 0:00:08]} 45. Nxe8+ {[%emt 0:00:00]} Kg6 {[%emt 0:00:21]} 46. Rg1+ {[%emt 0:00:00]} Kf5 {[%emt 0:00:43]} 47. Ng7+ {[%emt 0:00:00]} Ke4 {[%emt 0:00:17]} 48. Rh1 {[%emt 0:00:00]} Kd3 {[%emt 0:02:13]} (48... b6 {keeps fighting.} 49. Rh6 Kf4 50. Ne6+ (50. Rxb6 h5 $18) 50... Kf5) 49. Rh4 $18 {[%emt 0:00:00]} ({Much less strong is} 49. Ne6 Kxc4 50. Rh4+ (50. Rc1+ Kd5 $18) 50... Kb5) 49... b6 {[%emt 0:00:15]} 50. Ne6 {[%emt 0:00:00]} Re8 {[%emt 0:01:53]} 51. Nc7 {[%emt 0:00:00]} Re4 {[%emt 0:00:28]} 52. Rxh7 {[%emt 0:00:00]} Kxc4 {[%emt 0:01:17]} 53. Rh3 {[%emt 0:00:00]} Rg4 {[%emt 0:01:01]} 54. Ka2 {[%emt 0:00:00]} Re4 {[%emt 0:01:44]} 55. Rc3+ {[%emt 0:00:00]} Kd4 {[%emt 0:00:07]} 56. Nb5+ {[%emt 0:00:00]} Kd5 {[%emt 0:00:23]} 57. Rh3 {[%emt 0:00:00]} Kc6 {[%emt 0:00:50]} 58. Nc3 {[%emt 0:00:00]} Rd4 {[%emt 0:00:06]} 59. Kb1 {[%emt 0:00:00]} Kb7 {[%emt 0:00:11]} 60. Kc2 {[%emt 0:00:00]} Ka6 {[%emt 0:00:05]} 61. Rd3 {[%emt 0:00:00]} Rh4 {[%emt 0:00:11]} 62. Rd6 {[%emt 0:00:00]} Ka7 {[%emt 0:02:40]} 63. Nd5 {[%emt 0:00:00]} b5 {[%emt 0:00:46]} 64. Rc6 {[%emt 0:01:30]} b4 {[%emt 0:02:20]} 65. Rxc5 {[%emt 0:01:06]} Rh2+ {[%emt 0:00:06]} 66. Kd3 {[%emt 0:01:30]} bxa3 {[%emt 0:01:46]} 67. bxa3 {[%emt 0:00:06]} Rh3+ {[%emt 0:00:14]} 68. Ne3 {[%emt 0:00:05]} Kb6 {[%emt 0:00:03]} 69. Re5 {[%emt 0:00:16]} Rh1 {[%emt 0:00:41]} 70. Nc4+ {[%emt 0:00:22]} Kc6 {[%emt 0:00:10]} 71. Kc3 {[%emt 0:00:12]} Rb1 {[%emt 0:00:52]} 72. Nb2 {[%emt 0:00:36]} 1-0

[Event "Karel Janecek Open 2024"]
[Site "Prague"]
[Date "2024.03.02"]
[Round "4.4"]
[White "Harshavardhan G B"]
[Black "Quintiliano, Renato R."]
[Result "1-0"]
[ECO "B61"]
[WhiteElo "2392"]
[BlackElo "2493"]
[Annotator "TA"]
[PlyCount "114"]
[EventDate "2024.02.22"]
[EventType "swiss"]
[EventCountry "CZE"]
[SourceTitle "playchess.com"]
[Source "ChessBase"]
[SourceQuality "1"]
[TimeControl "40/5400+30:1800+30"]

{[%evp 32,114,134,150,277,285,253,284,289,291,285,284,281,251,236,230,274,277,278,231,254,260,224,220,239,222,293,170,172,169,279,286,336,300,335,312,341,311,314,291,285,191,168,138,120,66,64,58,58,46,47,38,75,38,54,0,45,75,38,44,44,0,0,0,0,-281,0,0,0,0,0,-10,0,0,0,0,0,0,5608,4134,5081,5065,4590,4134,29981]} 1. e4 {[%emt 0:00:10] Hracek,Zbynek} c5 {[%emt 0:00:43]} 2. Nf3 {[%emt 0:00:15]} d6 {[%emt 0:00:05]} 3. d4 {[%emt 0:00:11]} cxd4 {[%emt 0:00:13]} 4. Nxd4 {[%emt 0:00:06]} Nf6 {[%emt 0:00:06]} 5. Nc3 {[%emt 0:00:08]} Nc6 {[%emt 0:00:39]} 6. Bg5 {[%emt 0:00:32]} Bd7 {[%emt 0:00:00]} 7. Qd2 {[%emt 0:00:43]} a6 {[%emt 0:00:00]} 8. Bxf6 {[%emt 0:01:55] B61: Sicilian: Richter-Rauzer: 6...Bd7 7 Qd2.} gxf6 {[%emt 0:00:07]} 9. Nf5 {[%emt 0:00:08]} Rc8 {[%emt 0:21:14]} 10. Be2 {[%emt 0:04:51]} Ne5 $146 {[%emt 0:06:22]} ({Predecessor:} 10... Qb6 11. O-O Bxf5 12. exf5 Nd4 13. Nd5 Qxb2 14. Rab1 Nxe2+ 15. Qxe2 Qxa2 16. Rfd1 b5 {1-0 Hracek,Z (2629)-Krakops,M (2530) EU-chT (Men) 12th 1999 (1.2)}) 11. f4 {[%emt 0:07:43]} Nc4 {[%emt 0:02:14]} 12. Bxc4 {[%emt 0:01:37]} Rxc4 {[%emt 0:00:05]} 13. Qd3 {[%emt 0:00:34]} Rc6 {[%emt 0:11:46]} 14. O-O-O {[%emt 0:01:40]} e6 {[%emt 0:01:41]} 15. Rhe1 {[%emt 0:02:22]} Qa5 {[%emt 0:07:23]} 16. Nd4 {[%emt 0:07:58]} Rc8 {[%emt 0:02:11]} 17. Kb1 {[%emt 0:00:56]} b5 {[%emt 0:04:02]} (17... Rg8 $16) 18. e5 $1 $18 {[%emt 0:08:28]} fxe5 {[%emt 0:11:44]} 19. fxe5 {[%emt 0:07:44]} Rxc3 {[%emt 0:15:32]} 20. bxc3 {[%emt 0:00:32]} (20. Qxc3 Qxc3 21. bxc3 dxe5 22. Rxe5 Rg8 $16) 20... d5 {[%emt 0:00:15]} 21. Rf1 {[%emt 0:00:48]} Qc7 {[%emt 0:03:43]} 22. Rf3 {[%emt 0:03:11]} Bg7 {[%emt 0:00:53]} 23. Rdf1 {[%emt 0:00:29]} Rf8 {[%emt 0:00:32]} 24. Qxh7 {[%emt 0:01:04]} Qxe5 {[%emt 0:00:15]} 25. R3f2 {[%emt 0:04:34]} Rh8 {[%emt 0:00:47]} 26. Qd3 {[%emt 0:00:08]} Rf8 {[%emt 0:00:11]} 27. Re2 {[%emt 0:02:36]} Qc7 {[%emt 0:00:41]} 28. Qh7 {[%emt 0:01:09]} Be5 {[%emt 0:00:51] [#]} 29. Nxe6 {[%emt 0:10:04]} (29. Qh5 $142 $1 {[%mdl 512]} Bxd4 30. cxd4) 29... Bxe6 $18 {[%emt 0:01:18]} 30. Qh5 {[%emt 0:02:16]} Qxc3 {[%emt 0:00:46]} (30... Rh8 $142 31. Qxe5 Qxe5 32. Rxe5 Rxh2) 31. Qxe5 $18 {[%emt 0:00:20]} (31. Rxe5 Kd7 32. Rf4 d4 33. Rd5+ Bxd5 34. Qxd5+ Kc7 $14) 31... Qb4+ {[%emt 0:00:11]} 32. Kc1 {[%emt 0:00:24]} Kd7 {[%emt 0:01:07]} 33. Rf4 {[%emt 0:00:33]} Qa3+ {[%emt 0:01:16]} 34. Qb2 {[%emt 0:00:09]} Qc5 {[%emt 0:00:36]} 35. Qd4 {[%emt 0:03:16]} Qa3+ {[%emt 0:00:55]} 36. Kd1 {[%emt 0:04:02]} Rc8 {[%emt 0:01:33]} 37. Qg7 {[%emt 0:01:32]} Qxa2 {[%emt 0:02:56]} 38. Rxf7+ {[%emt 0:01:13]} (38. Kc1 $16) 38... Bxf7 $14 {[%emt 0:00:06]} 39. Qxf7+ {[%emt 0:00:04]} Kc6 {[%emt 0:00:41]} 40. Re6+ $1 {[%emt 0:00:05]} Kc5 {[%emt 0:00:13]} 41. Qe7+ $1 {[%emt 0:30:09]} Kd4 $1 {[%emt 0:31:20]} (41... Kc4 $2 42. Re4+ dxe4 43. Qf7+ Kc5 44. Qxa2 $18) 42. Qg7+ {[%emt 0:00:10]} Kc5 $1 {[%emt 0:03:02]} 43. Qe7+ {[%emt 0:13:18]} Kd4 $1 {[%emt 0:00:27]} ({Don't go for} 43... Kc4 $2 44. Re4+ dxe4 45. Qf7+ Kc5 46. Qxa2 $18) 44. Qf6+ {[%emt 0:02:00]} Kc5 {[%emt 0:00:00]} 45. Re3 {[%emt 0:00:00]} d4 $1 {[%emt 0:00:00]} 46. Qe7+ {[%emt 0:00:00]} Kb6 {[%emt 0:00:06]} 47. Qd6+ {[%emt 0:00:00]} Kb7 {[%emt 0:00:44]} 48. Qe7+ $2 {[%emt 0:00:04][%mdl 8192] [#]} (48. Re7+ $1 $11 {and White has nothing to worry.} Ka8 49. Rc7 Qa1+ 50. Ke2 d3+ 51. cxd3 (51. Kxd3 $2 {loses.} Qd1+ 52. Kc3 Qxd6 $19) 51... Re8+ 52. Re7 Qb2+ 53. Kf1 Rf8+ 54. Ke1 Qa1+ 55. Kd2 Qb2+ 56. Ke1 Qc1+ 57. Ke2 Qb2+ 58. Ke3 Qf2+ (58... Qxg2 59. Qxa6+ Kb8 60. Qa7+ Kc8 61. Qc7#) 59. Ke4 Qxg2+ 60. Kd4 Qg1+ 61. Ke4 Qg4+ 62. Kd5 Qg8+ 63. Kc5 Rc8+ 64. Kb6 Rb8+ 65. Kc5 Qg1+ 66. Kd5 Qg2+ 67. Kd4 Qg1+ 68. Kc3 Qc1+ 69. Kd4 Qa1+ 70. Kd5 Qa2+ 71. Ke4 Qe2+ 72. Kd4 Qf2+ 73. Ke4 Qe2+ 74. Kd4 Qf2+ 75. Kc3 Rc8+ 76. Rc7 Qe1+ 77. Kc2 Rxc7+ 78. Qxc7) 48... Kb6 $2 {[%emt 0:01:14]} (48... Kb8 $1 $19 49. Qe5+ Rc7) 49. Qe6+ $11 {[%emt 0:00:59]} Qxe6 {[%emt 0:00:06]} 50. Rxe6+ {[%emt 0:00:04]} Ka5 {[%emt 0:00:55]} 51. g4 {[%emt 0:00:20]} Rh8 {[%emt 0:00:26]} 52. Re2 {[%emt 0:00:11]} Kb4 {[%emt 0:00:04]} 53. Rg2 {[%emt 0:00:32]} a5 {[%emt 0:00:44]} 54. g5 {[%emt 0:00:04]} Kc5 $2 {[%emt 0:01:02][%mdl 8192]} (54... d3 $11) 55. g6 $18 {[%emt 0:00:19]} Kd6 {[%emt 0:00:10]} 56. g7 {[%emt 0:00:12]} Rg8 {[%emt 0:00:06] [#]} 57. h4 $1 {[%emt 0:00:06]} Kd5 {[%emt 0:00:21]} 1-0

[Event "Karel Janecek Open 2024"]
[Site "Prague"]
[Date "2024.03.02"]
[Round "4.5"]
[White "Barbosa, Evandro Amorim"]
[Black "Neverov, Valeriy"]
[Result "1/2-1/2"]
[ECO "B67"]
[WhiteElo "2491"]
[BlackElo "2423"]
[Annotator "TA"]
[PlyCount "123"]
[EventDate "2024.02.22"]
[EventType "swiss"]
[EventCountry "CZE"]
[SourceTitle "playchess.com"]
[Source "ChessBase"]
[SourceQuality "1"]
[TimeControl "40/5400+30:1800+30"]

{[%evp 16,123,49,11,23,14,38,39,33,37,33,46,51,47,54,52,29,26,40,14,24,-21,-16,-33,-36,-38,-11,-19,-12,-24,-16,-25,-24,-49,-38,-33,-30,-33,-18,-14,0,0,0,0,14,4,5,0,0,0,0,0,0,0,0,0,0,0,0,0,0,-6,0,0,0,0,18,15,27,23,18,18,18,18,39,39,39,39,60,60,60,60,60,8,8,12,58,0,0,0,0,0,0,0,0,8,8,0,0,0,8,0,0,0,0,0,0,0,0,0]} 1. e4 {[%emt 0:00:56]} c5 {[%emt 0:00:20]} 2. Nf3 {[%emt 0:00:16]} d6 {[%emt 0:00:40]} 3. d4 {[%emt 0:00:14]} cxd4 {[%emt 0:00:03]} 4. Nxd4 {[%emt 0:00:08]} Nf6 {[%emt 0:00:03]} 5. Nc3 {[%emt 0:00:09]} Nc6 {[%emt 0:00:25]} 6. Bg5 {[%emt 0:01:02]} e6 {[%emt 0:00:33]} 7. Qd2 {[%emt 0:00:31]} a6 {[%emt 0:03:00]} 8. O-O-O {[%emt 0:00:20]} Bd7 {[%emt 0:01:23]} 9. Kb1 {[%emt 0:00:54]} h6 {[%emt 0:06:13]} 10. Be3 {[%emt 0:05:09]} Ng4 {[%emt 0:31:35]} 11. Nxc6 {[%emt 0:00:53]} Bxc6 {[%emt 0:05:51] White is slightly better.} 12. Bd4 {[%emt 0:00:16]} e5 {[%emt 0:04:42]} 13. Be3 {[%emt 0:00:14]} Nxe3 {[%emt 0:00:43]} 14. Qxe3 {[%emt 0:00:23]} b5 {[%emt 0:00:01]} 15. f4 {[%emt 0:01:36]} exf4 {[%emt 0:01:33]} 16. Qxf4 {[%emt 0:00:19]} Qg5 {[%emt 0:00:17]} 17. Qf2 {[%emt 0:18:06] aiming for Nd5.} Be7 {[%emt 0:04:32]} 18. Qb6 {[%emt 0:09:07]} Qc5 {[%emt 0:00:41]} 19. Qxc5 {[%emt 0:10:14]} (19. Qc7 {is more complex.} Rd8 20. Be2 Bf6 21. Rhf1) 19... dxc5 {[%emt 0:00:05]} 20. Nd5 {[%emt 0:01:38]} Ra7 {[%emt 0:06:06] Prevents Nc7+.} 21. Be2 {[%emt 0:00:12]} O-O {[%emt 0:02:09]} 22. Bf3 {[%emt 0:00:13]} Re8 {[%emt 0:02:54]} 23. Rhe1 {[%emt 0:02:33]} Bh4 {[%emt 0:16:31]} 24. Re2 {[%emt 0:03:00]} Re5 {[%emt 0:02:46]} 25. Nf4 {[%emt 0:00:36]} c4 {[%emt 0:03:41] Prevents Nd3} 26. Rd6 {[%emt 0:04:23]} Rc7 {[%emt 0:00:30]} 27. Nd5 {[%emt 0:01:35] Repels Be7} Bxd5 {[%emt 0:01:21]} 28. Rxd5 {[%emt 0:00:09]} Bf6 {[%emt 0:01:58]} 29. c3 {[%emt 0:01:48]} Kf8 {[%emt 0:00:49]} 30. Rd6 {[%emt 0:01:07]} a5 {[%emt 0:01:07]} 31. Rb6 {[%emt 0:03:16]} Rd7 {[%emt 0:02:18]} 32. Kc2 {[%emt 0:00:11]} a4 {[%emt 0:00:31]} 33. Rd2 {[%emt 0:02:52]} Rxd2+ {[%emt 0:00:29]} 34. Kxd2 $11 {[%emt 0:00:09][%mdl 4096] Endgame. KRB-KRB} Bg5+ {[%emt 0:00:56]} 35. Kc2 {[%emt 0:00:08]} g6 {[%emt 0:00:22]} 36. Rb8+ {[%emt 0:04:01]} Ke7 {[%emt 0:00:42]} 37. Rb7+ {[%emt 0:00:12]} Kf6 {[%emt 0:00:33]} 38. b3 {[%emt 0:01:52]} axb3+ {[%emt 0:00:09]} 39. axb3 {[%emt 0:00:06]} cxb3+ {[%emt 0:00:33]} 40. Kxb3 {[%emt 0:00:03]} h5 {[%emt 0:00:51]} 41. Kb4 {[%emt 0:38:40]} Ke6 {[%emt 0:30:06]} 42. Rxb5 {[%emt 0:08:00]} Be7+ {[%emt 0:00:25]} 43. Kc4 {[%emt 0:00:27]} Rxb5 {[%emt 0:00:09]} 44. Kxb5 {[%emt 0:00:07] KB-KB} Bd6 {[%emt 0:00:00]} 45. h3 {[%emt 0:00:00]} Be5 {[%emt 0:00:00]} 46. c4 {[%emt 0:00:00][%cal Bc3c4,Bc4c5][%mdl 32]} Kd6 {[%emt 0:00:00]} 47. c5+ {[%emt 0:00:00]} Kc7 {[%emt 0:00:00]} 48. h4 {[%emt 0:00:00]} Bg3 {[%emt 0:00:00]} 49. Kc4 {[%emt 0:00:00]} ({White should try} 49. Bd1 $14) 49... Bxh4 {[%emt 0:00:00]} 50. e5 {[%emt 0:00:00]} Bf2 {[%emt 0:00:11]} (50... Kd7 $11) 51. Kd5 {[%emt 0:00:00]} (51. Bd5 $14 Bg3 52. Kd4 (52. Bxf7 Bxe5 53. Bxg6 h4 $11) 52... Bf2+ 53. Kc4) 51... Kd7 {[%emt 0:01:06] The position is equal.} 52. Bd1 {[%emt 0:00:00]} Ke7 {[%emt 0:00:40]} 53. Bb3 {[%emt 0:00:00]} h4 {[%emt 0:00:55]} 54. Bd1 {[%emt 0:00:00]} Be3 {[%emt 0:00:26]} 55. Bg4 {[%emt 0:00:00]} Bf2 {[%emt 0:00:08]} 56. Kc6 {[%emt 0:05:51]} Bd4 {[%emt 0:00:17]} 57. Kd5 {[%emt 0:00:19]} Bf2 {[%emt 0:00:08]} 58. c6 {[%emt 0:02:36] [#] Intending c7 and mate.} Bb6 {[%emt 0:00:09]} 59. Bh3 {[%emt 0:00:09]} Bc7 {[%emt 0:00:25]} 60. Bg4 {[%emt 0:00:13]} Bb8 {[%emt 0:00:14]} 61. Bh3 {[%emt 0:00:07]} Bc7 {[%emt 0:00:11]} 62. Bg4 {[%emt 0:00:56] Weighted Error Value: White=0.10 (very precise) /Black=0.06 (flawless) .  Mistake:       	White=2     	Black=1      Inaccurate:     	White=2     	Black=1      OK:         	White=22    	Black=27} 1/2-1/2

[Event "Karel Janecek Open 2024"]
[Site "Prague"]
[Date "2024.03.02"]
[Round "4.6"]
[White "Stoyanov, Tsvetan"]
[Black "Kalogeris, Ioannis"]
[Result "1-0"]
[ECO "A29"]
[WhiteElo "2465"]
[BlackElo "2427"]
[Annotator "RC"]
[PlyCount "93"]
[EventDate "2024.02.22"]
[EventType "swiss"]
[EventCountry "CZE"]
[SourceTitle "playchess.com"]
[Source "ChessBase"]
[SourceQuality "1"]
[TimeControl "40/5400+30:1800+30"]

1. c4 {[%emt 0:00:03]} e5 {[%emt 0:00:23]} 2. Nc3 {[%emt 0:00:23]} Nf6 {[%emt 0:00:10]} 3. Nf3 {[%emt 0:00:18]} Nc6 {[%emt 0:10:35]} 4. g3 {[%emt 0:00:05]} d5 {[%emt 0:00:51]} 5. cxd5 {[%emt 0:00:05]} Nxd5 {[%emt 0:00:08]} 6. Bg2 {[%emt 0:00:04]} Nb6 {[%emt 0:01:09]} 7. O-O {[%emt 0:00:28]} Be7 {[%emt 0:02:06]} 8. a3 {[%emt 0:00:13]} Be6 {[%emt 0:01:42]} 9. d3 {[%emt 0:01:07]} O-O {[%emt 0:00:27]} 10. b4 {[%emt 0:00:43]} a5 {[%emt 0:03:07]} 11. b5 {[%emt 0:00:05]} Nd4 {[%emt 0:00:09]} 12. Bb2 {[%emt 0:00:13]} a4 {[%emt 0:13:23]} 13. Nxe5 {[%emt 0:16:05]} Bf6 {[%emt 0:03:38]} 14. Nf3 {[%emt 0:11:00]} Nxb5 {[%emt 0:01:30]} 15. Qc1 {[%emt 0:00:11]} Nxc3 {[%emt 0:01:39]} 16. Bxc3 {[%emt 0:00:01]} Bxc3 {[%emt 0:06:58]} 17. Qxc3 {[%emt 0:00:02]} Nd5 {[%emt 0:01:23]} 18. Qb2 {[%emt 0:04:04]} Rb8 {[%emt 0:10:57]} 19. Rfc1 {[%emt 0:05:27]} Ne7 {[%emt 0:13:02]} 20. Rab1 {[%emt 0:16:30]} Qd6 {[%emt 0:09:02]} 21. Nd4 {[%emt 0:04:23]} Bd7 {[%emt 0:01:34]} 22. Qb4 {[%emt 0:08:35]} Rfc8 {[%emt 0:02:36]} 23. Qxd6 {[%emt 0:06:10]} cxd6 {[%emt 0:00:02]} 24. Rxc8+ {[%emt 0:00:01]} Rxc8 {[%emt 0:00:30]} 25. Bxb7 {[%emt 0:00:48]} Rc3 {[%emt 0:02:29]} 26. Ba6 {[%emt 0:04:41]} g6 {[%emt 0:01:13]} 27. Bb5 {[%emt 0:03:36]} Bxb5 {[%emt 0:04:08]} 28. Nxb5 {[%emt 0:00:05]} Rc2 {[%emt 0:00:12]} 29. Kf1 {[%emt 0:07:21]} Nc6 {[%emt 0:03:42]} 30. Nxd6 {[%emt 0:01:55]} Ra2 {[%emt 0:00:20]} 31. Nc4 {[%emt 0:00:55]} Nd4 {[%emt 0:00:09]} 32. e3 {[%emt 0:00:50]} Nb3 {[%emt 0:00:03]} 33. Kg2 {[%emt 0:01:42]} Kg7 {[%emt 0:00:36]} 34. h4 {[%emt 0:00:50]} h5 {[%emt 0:01:17]} 35. Rb2 {[%emt 0:00:34]} Ra1 {[%emt 0:00:02]} 36. Rc2 {[%emt 0:00:22]} Kf6 {[%emt 0:01:39]} 37. Rc3 {[%emt 0:00:56]} Ra2 {[%emt 0:03:14]} 38. Nb6 {[%emt 0:00:52]} Na1 {[%emt 0:00:04]} 39. Nxa4 {[%emt 0:03:35]} Nc2 {[%emt 0:00:07]} 40. d4 {[%emt 0:00:44]} Nxa3 {[%emt 0:00:33]} 41. Nb6 {[%emt 0:31:40]} Nc2 {[%emt 0:30:27]} 42. Nd7+ {[%emt 0:00:51]} Kf5 {[%emt 0:00:20]} 43. Ne5 {[%emt 0:00:00]} f6 {[%emt 0:00:00]} 44. Nf3 {[%emt 0:00:00]} Nb4 {[%emt 0:00:00]} 45. Ne1 {[%emt 0:00:00]} Ke4 {[%emt 0:00:00]} 46. Rc8 {[%emt 0:00:00]} Re2 {[%emt 0:00:00]} 47. Rb8 {[%emt 0:00:00]} 1-0